bitfinex/quotes_ETHUSD_20250529
["timestamp","ask_amount","ask_price","bid_price","bid_amount"]
[1748529410362,4.896,2647.7,2646.1,1.90499004]
[1748529410563,1.317,2647.9,2646.1,2.94061844]
[1748529410866,3.77710627,2647.6,2645.9,1.5115]
[1748529411020,0.37771063,2647.5,2645.9,1.5115]
[1748529411763,9.847,2647.8,2645.9,2.5471284]
[1748529411926,1.847,2647.8,2646.0,8.0]
[1748529412128,1.847,2647.8,2646.0,8.52317596]
[1748529412328,0.55,2647.7,2646.0,1.0356284]
[1748529412640,0.55,2647.7,2646.1,2.15970288]
[1748529413848,0.55,2647.7,2646.1,10.15970288]
[1748529414055,0.55,2647.7,2646.1,2.68287884]
[1748529414458,1.297,2647.8,2646.2,8.0]
[1748529414669,1.297,2647.8,2646.4,8.0]
[1748529414838,0.5663,2647.7,2646.4,8.0]
[1748529415039,1.297,2647.6,2646.4,8.0]
[1748529415281,1.297,2647.6,2646.1,0.25471284]
[1748529415491,1.297,2647.6,2645.9,1.90499004]
[1748529415666,0.55,2647.5,2645.9,1.90499004]
[1748529415993,1.297,2647.6,2645.9,2.27617763]
[1748529416189,1.297,2647.6,2646.0,8.0]
[1748529416404,1.297,2647.6,2646.0,8.52317596]
[1748529417376,0.55,2647.8,2646.1,1.5933]
[1748529417674,0.35620541,2647.7,2646.3,1.90499004]
[1748529417889,0.55,2647.6,2646.1,0.43565297]
[1748529418061,0.55,2647.4,2645.9,8.0]
[1748529418258,0.22232054,2647.7,2645.9,8.0]
[1748529418496,5.25215961,2647.6,2645.9,8.0]
[1748529418665,0.35615961,2647.5,2645.9,8.0]
[1748529418994,0.35621087,2647.4,2645.9,8.0]
[1748529419309,0.54744801,2647.5,2645.9,8.0]
[1748529419515,0.90634247,2647.4,2645.9,8.0]
[1748529419801,0.54744801,2647.5,2645.9,8.0]
[1748529420005,0.35635715,2647.4,2645.9,8.0]
[1748529420156,0.52498052,2647.4,2645.9,8.0]
[1748529420579,1.297,2647.3,2645.9,8.0]
[1748529421397,0.52498052,2647.4,2645.9,8.0]
[1748529421695,0.55,2647.6,2645.9,8.0]
[1748529421871,0.35617959,2647.5,2645.9,8.0]
[1748529422071,0.35617588,2647.4,2645.9,8.0]
[1748529422396,0.55,2647.6,2645.9,8.0]
[1748529422599,0.35615216,2647.5,2645.9,8.0]
[1748529422898,0.35614204,2647.4,2645.9,8.0]
[1748529423098,0.22031522,2647.5,2645.9,8.0]
[1748529423403,0.55,2647.3,2645.8,3.49829004]
[1748529423574,0.22031522,2647.5,2645.7,0.18598582]
[1748529423575,0.55,2647.1,2645.7,0.18598582]
[1748529423895,5.643,2647.0,2645.5,9.99659344]
[1748529424097,0.6193,2646.9,2645.5,9.99659344]
[1748529424397,0.55,2646.8,2645.5,0.55898624]
[1748529424599,0.55,2646.8,2645.5,0.37029344]
[1748529424600,4.32853391,2646.6,2645.5,0.37029344]
[1748529424797,0.55,2646.6,2645.1,0.02]
[1748529424972,0.35589416,2646.5,2645.1,0.02]
[1748529425173,0.55,2646.6,2645.1,0.02]
[1748529425386,0.55,2646.8,2645.1,0.02]
[1748529425590,0.55,2646.6,2645.1,0.02]
[1748529426163,0.35572957,2646.5,2645.1,0.02]
[1748529426362,0.55,2646.6,2645.1,0.02]
[1748529426578,0.55,2646.6,2645.1,0.20728803]
[1748529426799,0.55,2646.6,2645.1,0.02]
[1748529427186,5.643,2646.5,2645.3,9.5762]
[1748529427501,1.297,2646.5,2645.3,9.5762]
[1748529428292,1.297,2646.5,2645.3,1.5762]
[1748529429864,0.55,2646.4,2645.1,0.20212904]
[1748529431063,1.297,2646.5,2645.1,0.20212904]
[1748529431201,4.346,2646.4,2645.1,0.20212904]
[1748529431404,0.5643,2646.3,2645.1,8.20212904]
[1748529432031,0.55,2646.2,2645.1,8.20212904]
[1748529432272,0.55,2646.2,2645.1,0.20212904]
[1748529433009,0.55,2646.2,2645.1,0.02]
[1748529433616,0.5643,2646.3,2645.1,0.02]
[1748529433839,0.49103,2646.2,2645.1,0.02]
[1748529434043,4.346,2646.1,2645.1,0.02]
[1748529436428,0.55,2646.0,2645.1,0.02]
[1748529436966,3.77936955,2646.0,2645.1,0.02]
[1748529437138,0.55,2645.9,2645.1,0.02]
[1748529437342,20.07187614,2646.5,2645.1,0.02]
[1748529437343,0.55,2646.0,2645.1,0.02]
[1748529437555,5.643,2645.9,2645.1,0.02]
[1748529437754,0.6193,2645.8,2645.1,0.02]
[1748529438686,5.643,2645.7,2645.1,0.02]
[1748529439479,7.85,2646.5,2645.1,0.02]
[1748529439678,1.297,2646.1,2645.1,0.02]
[1748529439883,7.85,2646.5,2645.1,0.02]
[1748529440038,1.297,2646.3,2645.2,1.5052]
[1748529440238,1.297,2646.3,2645.1,0.02]
[1748529440239,0.5643,2646.2,2645.1,0.02]
[1748529440645,0.55,2646.1,2645.1,0.02]
[1748529440841,4.32921752,2646.1,2645.1,0.02]
[1748529441047,5.643,2646.0,2645.1,0.02]
[1748529441265,0.55,2646.1,2645.1,0.02]
[1748529441477,1.297,2646.0,2645.1,0.02]
[1748529441679,4.346,2645.9,2645.1,0.02]
[1748529441881,1.1143,2645.8,2645.1,0.02]
[1748529442287,5.643,2645.7,2645.1,0.02]
[1748529442757,6.2073,2645.8,2645.1,0.02]
[1748529443980,0.5643,2645.8,2645.1,0.02]
[1748529444181,5.643,2645.7,2645.1,0.02]
[1748529444402,0.5643,2646.2,2645.2,1.6024]
[1748529444699,5.643,2646.1,2645.2,1.6024]
[1748529446192,5.643,2646.1,2645.1,0.02]
[1748529446768,5.643,2646.0,2645.1,0.02]
[1748529446998,0.5643,2645.9,2645.1,0.02]
[1748529447200,5.643,2645.9,2645.1,0.02]
[1748529448169,1.297,2645.9,2645.1,0.02]
[1748529448372,5.642,2645.9,2645.1,0.02]
[1748529451831,0.55,2645.8,2645.1,0.02]
[1748529452989,0.55,2645.6,2645.1,0.02]
[1748529453453,0.4329718,2645.5,2645.1,0.02]
[1748529453949,0.55,2645.4,2645.1,0.02]
[1748529454636,5.64,2645.3,2645.1,0.02]
[1748529454801,0.35416409,2645.6,2645.1,1.5293]
[1748529455002,1.295,2645.6,2645.1,0.02]
[1748529455223,0.5639,2645.5,2645.1,0.02]
[1748529455516,4.344,2645.4,2645.1,0.02]
[1748529455717,1.295,2645.4,2645.1,0.02]
[1748529456891,0.55,2645.3,2645.1,0.02]
[1748529458020,1.295,2645.4,2645.1,0.02]
[1748529458217,6.25929,2645.3,2645.1,0.02]
[1748529458587,5.639,2645.2,2645.1,0.02]
[1748529459301,1.295,2645.2,2645.1,0.02]
[1748529460002,0.55,2645.9,2645.1,0.02]
[1748529460208,0.55,2645.7,2645.1,0.02]
[1748529460414,0.65435923,2645.6,2645.1,0.02]
[1748529461125,5.639,2645.5,2645.1,0.02]
[1748529462156,0.55,2645.9,2645.1,0.02]
[1748529462377,0.35488058,2645.8,2645.1,0.02]
[1748529462562,1.295,2645.8,2645.1,0.02]
[1748529463054,1.295,2645.8,2645.2,1.6521]
[1748529463830,1.295,2645.8,2645.2,1.84286234]
[1748529464955,8.163,2646.2,2645.2,1.84286234]
[1748529465460,4.343,2646.4,2645.4,1.5572]
[1748529465665,4.9068,2646.4,2645.6,1.5572]
[1748529466168,5.637,2646.3,2645.6,1.5572]
[1748529467847,4.32907942,2646.2,2645.2,1.6381]
[1748529468193,0.55,2646.2,2645.2,1.6381]
[1748529468394,0.55,2646.0,2645.2,1.6381]
[1748529469682,5.637,2646.3,2645.2,1.6381]
[1748529469683,5.636,2645.9,2645.2,1.6381]
[1748529469908,0.9979622,2646.2,2645.2,1.6381]
[1748529470083,4.341,2645.8,2645.2,1.6381]
[1748529470847,5.636,2645.9,2645.2,1.6381]
[1748529471760,0.55,2645.8,2645.2,1.6381]
[1748529472487,0.55,2645.8,2645.1,0.02]
[1748529475696,5.636,2645.9,2645.1,0.02]
[1748529475899,1.46822325,2645.8,2645.1,0.02]
[1748529476263,1.1136,2645.8,2645.1,0.02]
[1748529477351,0.35462472,2645.7,2645.1,0.02]
[1748529477563,1.1136,2645.8,2645.1,0.02]
[1748529477758,0.35461469,2645.7,2645.1,0.02]
[1748529477959,0.35461469,2645.6,2645.1,0.02]
[1748529478160,1.48737272,2645.7,2645.1,0.02]
[1748529478373,0.35458225,2645.6,2645.1,0.02]
[1748529478572,0.55,2645.6,2645.1,0.02]
[1748529478787,4.32989827,2645.6,2645.1,0.02]
[1748529479064,0.55,2645.4,2645.1,0.02]
[1748529479376,5.634,2645.3,2645.1,0.02]
[1748529480025,4.338,2645.2,2645.1,0.02]
[1748529481137,0.5636,2645.8,2645.2,1.6335]
[1748529481337,1.295,2645.7,2645.2,1.6335]
[1748529483448,4.338,2645.6,2645.2,1.6335]
[1748529483650,1.295,2645.7,2645.2,1.6335]
[1748529483851,4.338,2645.6,2645.2,1.6335]
[1748529484087,0.55,2646.0,2645.2,1.6335]
[1748529484374,4.43308406,2646.5,2645.2,1.6335]
[1748529484375,1.291,2645.9,2645.2,1.6335]
[1748529485878,4.337,2646.4,2645.2,1.6335]
[1748529486890,0.34711441,2646.8,2645.4,1.4586]
[1748529487040,0.34711441,2646.8,2645.6,1.4443]
[1748529487240,0.34711441,2646.8,2645.8,1.4443]
[1748529488483,4.68311441,2646.8,2645.0,8.0]
[1748529488650,1.0097,2646.6,2644.6,1.29]
[1748529488852,1.0097,2646.6,2644.3,0.18794279]
[1748529488853,0.55,2646.2,2644.3,0.18794279]
[1748529489052,1.84,2646.1,2644.3,0.18794279]
[1748529489279,0.28497,2646.0,2644.4,3.78151038]
[1748529489596,0.28497,2646.0,2644.6,3.78119374]
[1748529489743,0.27771628,2646.0,2644.5,3.78140723]
[1748529489944,4.335,2646.1,2644.7,3.78107859]
[1748529490238,4.335,2646.1,2644.4,3.78149926]
[1748529490447,4.335,2646.1,2644.5,8.0]
[1748529490851,0.55,2646.0,2644.3,10.09361658]
[1748529491210,0.55,2646.6,2644.7,9.90567379]
[1748529491481,4.334,2646.5,2645.2,1.5096]
[1748529491655,0.4884,2646.4,2645.2,1.5096]
[1748529491850,8.4884,2646.4,2645.0,3.78071387]
[1748529492051,0.4884,2646.4,2644.9,0.55]
[1748529492251,8.0,2646.4,2644.9,4.3308014]
[1748529492469,1.0097,2646.7,2644.9,4.3308014]
[1748529492669,9.4943,2646.5,2644.9,0.38088076]
[1748529492869,9.4943,2646.5,2644.5,3.78141747]
[1748529493091,9.4943,2646.5,2644.6,3.78125954]
[1748529493255,0.55,2646.3,2644.7,3.7810653]
[1748529493465,1.43783,2646.4,2644.3,4.29654832]
[1748529493811,1.43783,2646.4,2644.6,0.55]
[1748529494027,1.43783,2646.4,2644.5,13.6870448]
[1748529494324,0.55,2646.2,2644.6,3.78115731]
[1748529494462,0.855,2646.1,2644.8,8.0]
[1748529494963,0.855,2646.1,2644.9,1.3799]
[1748529495186,4.333,2646.3,2645.1,1.4743]
[1748529496470,4.332,2646.2,2645.1,1.4743]
[1748529496674,12.332,2646.4,2645.1,1.4743]
[1748529497058,1.4943,2646.5,2645.1,1.4743]
[1748529497292,4.332,2646.4,2645.4,1.4615]
[1748529498998,4.331,2646.5,2645.4,1.4615]
[1748529499184,0.4331,2646.4,2645.4,1.4615]
[1748529499389,1.29,2646.7,2645.5,8.0]
[1748529499558,1.29,2646.7,2645.7,1.5137]
[1748529500114,1.29,2646.7,2645.8,1.5137]
[1748529505018,0.55,2646.7,2645.8,1.5137]
[1748529505222,4.329,2646.6,2645.8,1.5137]
[1748529505517,0.5619,2646.5,2645.8,1.5137]
[1748529505921,1.9874,2646.5,2645.8,1.5137]
[1748529508526,0.5619,2646.5,2645.8,1.5137]
[1748529508851,4.327,2646.5,2645.8,1.5137]
[1748529511042,4.326,2646.6,2645.8,1.5137]
[1748529512917,1.63711441,2646.8,2645.8,1.4406]
[1748529512918,0.34711441,2646.8,2645.8,1.4406]
[1748529513663,0.34711441,2646.8,2646.0,1.3836]
[1748529514751,0.34711441,2646.8,2646.1,1.4937]
[1748529517722,0.34711441,2646.8,2646.2,1.3896]
[1748529518228,0.34711441,2646.8,2646.3,1.3896]
[1748529518555,0.34711441,2646.8,2646.4,1.3896]
[1748529519355,0.34711441,2646.8,2646.4,9.90567379]
[1748529519528,0.34711441,2646.8,2646.5,1.4535]
[1748529519931,0.12237253,2646.8,2646.7,1.4873]
[1748529524530,0.12237253,2646.8,2645.9,8.0]
[1748529524730,0.12237253,2646.8,2646.0,1.4599]
[1748529525343,0.12237253,2646.8,2646.2,1.4599]
[1748529527044,0.12237253,2646.8,2646.5,1.417]
[1748529528556,0.1143283,2646.8,2646.5,1.417]
[1748529529072,0.1143283,2646.8,2645.8,1.4045]
[1748529530332,1.5064,2646.7,2645.8,1.4045]
[1748529533974,1.5064,2646.7,2645.7,0.38051548]
[1748529534146,4.316,2646.7,2645.6,1.4045]
[1748529534471,1.89693283,2646.6,2645.6,1.4045]
[1748529535374,1.4539,2646.6,2645.6,11.31017379]
[1748529535736,1.4539,2646.6,2645.7,1.5028]
[1748529536174,1.4539,2646.6,2645.7,1.87534501]
[1748529536402,1.4539,2646.6,2645.7,9.87534501]
[1748529536900,0.1143283,2646.8,2645.7,9.87534501]
[1748529537103,0.1143283,2646.8,2646.1,8.0]
[1748529538801,1.3901,2646.7,2646.0,1.4458]
[1748529539769,0.1143283,2646.8,2646.0,1.4458]
[1748529541811,0.1143283,2646.8,2645.7,8.37254501]
[1748529541812,0.1143283,2646.8,2645.8,1.4767]
[1748529542012,1.4534,2646.7,2645.8,1.4767]
[1748529543024,1.4534,2646.7,2645.7,3.77963466]
[1748529543325,5.7654,2646.7,2645.6,1.4767]
[1748529543788,1.4534,2646.7,2645.6,5.25652776]
[1748529544124,1.4534,2646.7,2645.7,5.68534878]
[1748529544294,1.4534,2646.7,2645.8,8.0]
[1748529544499,1.4534,2646.7,2645.9,1.4767]
[1748529545822,1.4534,2646.7,2645.7,0.37334632]
[1748529546027,1.4534,2646.7,2645.6,1.4278]
[1748529546186,1.4534,2646.7,2645.7,8.0]
[1748529546383,1.4534,2646.7,2645.6,1.4278]
[1748529546683,1.4534,2646.7,2645.7,3.7797144]
[1748529546891,1.4534,2646.7,2645.8,1.90567379]
[1748529547527,1.4534,2646.7,2645.9,9.4549]
[1748529547887,0.1143283,2646.8,2646.1,8.0]
[1748529548122,0.1143283,2646.8,2645.9,1.97665772]
[1748529548319,0.1143283,2646.8,2645.9,1.4549]
[1748529548736,1.4395,2646.7,2645.7,0.36994642]
[1748529549095,1.4395,2646.7,2645.6,1.4682]
[1748529549429,1.4395,2646.6,2645.6,1.4682]
[1748529549731,0.57495,2646.5,2645.6,1.4682]
[1748529550236,1.3741,2646.4,2645.6,1.4682]
[1748529552009,1.3741,2646.4,2645.4,9.4353]
[1748529552832,0.57495,2646.5,2645.5,9.3996]
[1748529553017,1.3786,2646.4,2645.5,1.3996]
[1748529556033,1.3786,2646.4,2645.5,9.3996]
[1748529556301,0.8,2646.2,2645.6,1.90342425]
[1748529556938,0.8,2646.2,2645.5,1.3996]
[1748529558353,0.8,2646.2,2646.0,1.90342425]
[1748529558658,0.8,2646.2,2645.7,9.4707]
[1748529559349,0.8,2646.2,2645.7,9.84828089]
[1748529560264,0.79449842,2646.2,2645.7,0.37758089]
[1748529560463,0.79449842,2646.2,2645.4,1.3982]
[1748529560766,1.437,2646.1,2645.4,1.3982]
[1748529561743,1.437,2646.1,2645.2,9.4509]
[1748529561943,1.437,2646.1,2645.2,1.4509]
[1748529563331,1.437,2646.1,2645.1,0.19722712]
[1748529563731,1.437,2646.1,2644.7,1.4121]
[1748529563939,1.437,2646.1,2644.7,9.4121]
[1748529564472,1.437,2646.1,2644.7,1.4121]
[1748529564771,0.79449842,2646.2,2644.7,1.4121]
[1748529564772,1.4583,2645.9,2644.7,1.4121]
[1748529565510,1.4583,2645.9,2644.7,9.4121]
[1748529565801,1.4583,2645.9,2644.9,9.90342425]
[1748529565957,1.4583,2645.9,2644.8,1.90410071]
[1748529566299,1.45285746,2645.9,2644.8,1.90410071]
[1748529566500,1.45285746,2645.9,2644.4,1.90410071]
[1748529566697,5.803,2645.8,2644.3,0.38050294]
[1748529566980,5.803,2645.8,2644.1,0.02]
[1748529566981,0.55,2645.6,2644.1,0.02]
[1748529567155,0.55,2645.4,2644.1,0.02]
[1748529567356,0.4852,2645.3,2644.2,8.0]
[1748529567556,0.4852,2645.3,2644.1,0.02]
[1748529568347,0.55,2645.2,2644.1,0.02]
[1748529568845,0.4852,2645.3,2644.1,3.34130071]
[1748529569048,0.55,2645.6,2644.1,3.34130071]
[1748529569049,4.302,2645.4,2644.2,8.0]
[1748529569448,1.3757,2645.3,2644.2,8.0]
[1748529569887,1.3757,2645.3,2644.2,8.38263281]
[1748529570057,1.3757,2645.3,2644.2,12.68623645]
[1748529570258,1.3757,2645.3,2644.3,0.52175772]
[1748529570476,1.4224,2645.1,2644.2,12.16446341]
[1748529570658,1.4224,2645.1,2644.2,12.68618824]
[1748529570873,1.4224,2645.1,2644.3,8.0]
[1748529571073,1.4224,2645.1,2644.5,1.90410071]
[1748529571279,1.4224,2645.8,2644.9,1.90410071]
[1748529571811,1.4224,2645.8,2645.0,8.0]
[1748529572011,1.4224,2645.8,2645.0,3.7806491]
[1748529572304,1.4224,2645.8,2645.0,1.4297]
[1748529572459,1.4224,2645.8,2645.0,13.21029611]
[1748529572666,1.4224,2645.8,2645.1,8.0]
[1748529573175,1.4151723,2645.8,2645.0,4.39264498]
[1748529573387,1.4151723,2645.8,2645.2,1.90410071]
[1748529573578,1.4151723,2645.8,2645.0,4.39270411]
[1748529573780,1.4151723,2645.8,2645.1,3.78054207]
[1748529574175,0.79449842,2646.2,2645.2,1.4857]
[1748529575965,0.79449842,2646.2,2645.3,8.0]
[1748529576168,1.3998,2646.1,2645.3,8.0]
[1748529576401,1.3998,2646.1,2645.2,1.4857]
[1748529577302,1.3558,2645.6,2644.4,3.78145956]
[1748529577466,1.3558,2645.4,2644.6,1.90410071]
[1748529578708,1.3558,2645.4,2644.2,0.38263281]
[1748529578870,1.3558,2645.4,2644.1,1.382]
[1748529579065,1.3558,2645.4,2644.1,9.382]
[1748529579269,1.34805896,2645.4,2644.1,9.382]
[1748529580110,4.57355379,2646.2,2644.1,9.382]
[1748529580111,0.79449842,2646.2,2644.2,1.4322]
[1748529580310,0.59094612,2646.7,2646.1,3.33630071]
[1748529580510,1.17651602,2647.4,2646.8,1.94261009]
[1748529580709,3.10713577,2647.4,2646.2,0.55]
[1748529581024,0.02,2647.9,2646.2,0.37490979]
[1748529581025,6.08737382,2647.3,2646.2,0.37490979]
[1748529581176,4.297,2647.5,2646.2,0.37490979]
[1748529581368,4.297,2647.5,2645.8,5.383687]
[1748529581576,4.297,2647.5,2645.8,1.60421691]
[1748529581800,0.4297,2647.4,2646.0,8.0]
[1748529582217,1.3942,2647.3,2646.0,8.0]
[1748529582398,1.3942,2647.3,2646.0,14.06890318]
[1748529582602,1.3942,2647.3,2646.0,10.28962721]
[1748529582921,0.6912,2647.4,2646.0,8.3855265]
[1748529583080,1.267,2647.8,2646.0,8.3855265]
[1748529583282,1.267,2647.8,2646.1,3.7791147]
[1748529583481,1.267,2647.8,2646.4,8.0]
[1748529583734,1.267,2647.8,2646.4,11.77869754]
[1748529583891,1.267,2647.8,2646.5,3.77855003]
[1748529584091,1.267,2647.8,2646.6,3.77838316]
[1748529584399,1.267,2647.8,2646.6,8.0]
[1748529584585,1.267,2647.8,2646.6,3.77841422]
[1748529584912,0.02,2647.9,2646.6,3.77841422]
[1748529585116,0.02,2647.9,2646.7,1.90410071]
[1748529585312,0.02,2647.9,2646.7,13.68233716]
[1748529585714,1.3786,2647.8,2646.7,13.68233716]
[1748529585884,1.3786,2647.8,2646.8,3.77814644]
[1748529586084,1.3786,2647.8,2646.7,9.90410071]
[1748529586291,1.3786,2647.8,2646.9,3.77799282]
[1748529586527,1.3786,2647.8,2647.1,1.90410071]
[1748529586895,1.3786,2647.8,2646.7,1.90410071]
[1748529587229,1.3786,2647.8,2646.7,8.0]
[1748529587729,1.3786,2647.8,2646.7,13.6823619]
[1748529587942,1.3786,2647.8,2646.7,1.90410071]
[1748529588232,1.3786,2647.8,2646.9,3.77797732]
[1748529589035,1.3786,2647.8,2646.8,11.77811614]
[1748529589439,1.3786,2647.8,2646.9,3.77791744]
[1748529590348,1.3786,2647.8,2646.8,11.77814707]
[1748529590551,1.3786,2647.8,2646.9,1.90410071]
[1748529590723,1.3786,2647.8,2647.0,8.0]
[1748529590924,1.3786,2647.8,2646.9,1.90410071]
[1748529591111,1.3786,2647.8,2647.2,8.0]
[1748529591317,1.3786,2647.8,2647.5,3.77714383]
[1748529591816,1.37273618,2647.8,2647.4,3.77721947]
[1748529592011,0.02,2647.9,2647.5,3.77702305]
[1748529592218,0.02,2647.9,2647.5,8.0]
[1748529592572,0.005,2648.6,2647.8,1.3843]
[1748529592716,0.005,2648.6,2648.0,3.77639801]
[1748529593065,0.005,2648.6,2648.1,8.0]
[1748529593276,0.005,2648.6,2647.9,3.77655577]
[1748529593277,0.005,2648.6,2648.3,1.90410071]
[1748529594937,1.4799,2648.6,2648.3,1.90410071]
[1748529595845,0.005,2648.6,2648.3,1.90410071]
[1748529597772,0.005,2648.6,2648.2,3.77605567]
[1748529597923,0.005,2648.6,2648.4,1.90410071]
[1748529598150,8.32579935,2650.3,2648.3,3.77590216]
[1748529598393,8.0,2650.1,2648.3,1.90410071]
[1748529598659,0.55,2650.0,2648.3,1.90410071]
[1748529598875,0.55,2650.2,2648.3,1.90410071]
[1748529599082,0.55,2650.0,2648.3,1.90410071]
[1748529599223,0.55,2650.0,2648.4,1.4307]
[1748529600159,8.0,2650.2,2648.4,1.4307]
[1748529600522,3.977,2649.9,2648.1,1.4879]
[1748529600870,3.977,2649.6,2648.1,0.02]
[1748529601033,4.3747,2649.5,2648.1,0.02]
[1748529601234,0.4462,2649.4,2648.4,1.90410071]
[1748529601604,0.4462,2649.4,2648.1,1.4005]
[1748529601886,0.4462,2649.4,2648.1,0.02]
[1748529602089,0.4462,2649.4,2648.1,8.02]
[1748529602864,0.4341,2649.3,2648.1,0.02]
[1748529603048,0.4341,2649.1,2648.1,0.02]
[1748529603585,0.4341,2648.9,2648.1,0.02]
[1748529603764,3.77430811,2649.5,2648.1,0.02]
[1748529603765,3.977,2649.7,2648.1,0.02]
[1748529603946,5.236,2649.7,2648.1,0.02]
[1748529604150,0.5236,2649.6,2648.1,0.02]
[1748529604378,0.5236,2649.6,2648.2,1.4373]
[1748529604583,1.259,2649.8,2648.2,9.4373]
[1748529604951,1.259,2649.8,2648.2,8.0]
[1748529605261,5.236,2649.8,2648.1,0.02]
[1748529605460,3.977,2649.6,2648.1,0.02]
[1748529605649,4.527,2649.5,2648.1,0.02]
[1748529605855,0.55,2649.3,2648.1,0.02]
[1748529606494,3.77596943,2648.4,2648.1,0.02]
[1748529606793,0.55,2648.5,2648.1,0.02]
[1748529607399,0.55,2648.3,2648.1,0.02]
[1748529607549,1.2910692,2648.2,2648.1,0.02]
[1748529607752,0.55,2648.7,2648.1,0.02]
[1748529608620,4.32548521,2648.7,2648.1,0.02]
[1748529608754,4.32550292,2648.7,2648.1,0.02]
[1748529608955,0.55,2648.7,2648.1,0.02]
[1748529609186,0.90299415,2648.7,2648.1,0.02]
[1748529609399,0.55,2648.5,2648.1,0.02]
[1748529609897,0.55,2648.3,2648.1,0.02]
[1748529610057,12.201783,2648.2,2648.1,0.02]
[1748529610451,3.77576073,2648.5,2648.1,0.02]
[1748529610452,11.62777894,2648.4,2648.1,0.02]
[1748529610659,8.577331,2648.3,2648.1,0.02]
[1748529610911,7.614003,2648.4,2648.1,0.02]
[1748529611057,1.66552971,2648.6,2648.1,0.02]
[1748529611379,0.35388077,2648.5,2648.1,0.02]
[1748529611582,5.44111137,2648.6,2648.1,0.02]
[1748529611781,0.35360964,2648.5,2648.1,0.02]
[1748529612001,22.15887781,2648.4,2648.1,0.02]
[1748529612293,0.55,2648.2,2648.1,0.02]
[1748529612498,8.489323,2648.2,2648.1,0.02]
[1748529613672,8.489323,2648.2,2647.4,0.38633771]
[1748529613673,8.84316462,2648.2,2647.4,0.38633771]
[1748529613860,5.51796613,2648.1,2647.1,0.02]
[1748529614169,3.77623546,2648.2,2647.1,0.02]
[1748529614506,3.7764199,2648.1,2647.1,0.02]
[1748529614664,3.77617059,2648.2,2647.1,0.02]
[1748529614860,4.279849,2648.1,2647.1,0.02]
[1748529615098,0.50351706,2648.1,2647.1,0.02]
[1748529615405,0.50351706,2648.1,2647.1,0.40142713]
[1748529615617,3.77629243,2648.1,2647.1,0.02]
[1748529616111,0.55,2648.0,2647.1,0.02]
[1748529617305,4.32621998,2648.2,2647.1,0.02]
[1748529617469,0.55,2647.9,2647.1,0.02]
[1748529617866,0.55,2647.6,2647.1,0.02]
[1748529618101,0.4326987,2647.5,2647.1,0.02]
[1748529618271,0.55,2647.7,2647.1,0.40467493]
[1748529618601,3.77657766,2647.9,2647.1,0.02]
[1748529618804,0.55,2647.7,2647.1,0.02]
[1748529619376,0.55,2647.8,2647.1,0.02]
[1748529619910,0.55,2647.6,2647.1,0.02]
[1748529620082,0.34821544,2647.5,2647.1,0.02]
[1748529620283,6.01239654,2647.5,2647.1,0.02]
[1748529620604,6.637292,2647.4,2647.1,0.02]
[1748529621520,0.846725,2647.4,2647.1,0.02]
[1748529621821,10.116736,2647.4,2647.1,0.02]
[1748529622017,3.639022,2647.3,2647.1,0.02]
[1748529622219,0.4189022,2647.2,2647.1,0.02]
[1748529622584,0.55,2647.4,2647.1,0.02]
[1748529622781,2.176122,2647.3,2647.1,0.02]
[1748529623411,0.55,2647.4,2647.1,0.02]
[1748529623816,2.62712,2647.3,2647.1,0.02]
[1748529624220,0.55,2647.4,2647.1,0.02]
[1748529624717,11.209105,2647.3,2647.1,0.02]
[1748529624882,1.1209105,2647.2,2647.1,0.02]
[1748529625085,21.200082,2647.5,2647.1,0.02]
[1748529625086,17.956147,2647.4,2647.1,0.02]
[1748529625404,19.615118,2647.4,2647.1,0.02]
[1748529625608,3.7775763,2647.2,2647.1,0.02]
[1748529625806,11.21258293,2647.2,2647.1,0.02]
[1748529626006,10.35694493,2647.2,2647.1,0.02]
[1748529626205,9.73116893,2647.2,2647.1,0.02]
[1748529626626,10.6851543,2647.2,2647.1,0.02]
[1748529626829,1.3517,2647.0,2645.3,9.90410071]
[1748529627864,1.26,2646.9,2645.5,8.0]
[1748529628025,1.26,2646.9,2645.6,1.4484]
[1748529628350,1.26,2646.9,2645.6,1.82021855]
[1748529628663,1.26,2646.9,2645.7,8.98202185]
[1748529629018,1.26,2646.9,2645.8,1.4484]
[1748529629536,1.28,2646.9,2645.8,1.4484]
[1748529631059,0.02,2646.9,2645.8,1.4484]
[1748529631262,0.02,2646.9,2646.5,1.41]
[1748529631417,0.02,2646.9,2646.7,1.41]
[1748529633059,0.02,2646.9,2646.5,1.4758]
[1748529633262,5.03672866,2647.8,2646.5,1.4758]
[1748529633263,1.26,2647.5,2646.5,1.4758]
[1748529633655,1.26,2647.5,2645.9,1.4758]
[1748529635562,3.977,2647.3,2645.9,1.4758]
[1748529635763,0.3977,2647.2,2645.9,1.4758]
[1748529637182,3.977,2647.1,2645.9,1.4758]
[1748529638593,7.75479563,2647.1,2645.9,1.4758]
[1748529638768,3.77790733,2647.0,2645.9,1.4758]
[1748529639217,3.7782312,2646.8,2645.9,1.4758]